[Event "Early-Titled-Tuesday-Blitz-March-12-2024"]
[Site "Chess.com"]
[Date "2024.03.12"]
[Round "3"]
[White "Switzerlamb"]
[Black "Fandorine"]
[Result "1/2-1/2"]
[WhiteElo "2559"]
[BlackElo "2948"]
[TimeControl "180+1"]
[EndTime "8:27:42 PDT"]
[Termination "Game drawn by agreement"]

1. Nf3 {[%clk 0:02:57.8]} 1... Nf6 {[%clk 0:02:59.4]} 2. c4 {[%clk 0:02:58]}
2... e6 {[%clk 0:02:59.7]} 3. Nc3 {[%clk 0:02:58.2]} 3... d5 {[%clk 0:02:59.4]}
4. d4 {[%clk 0:02:57.2]} 4... Be7 {[%clk 0:02:53.1]} 5. Bg5 {[%clk 0:02:56.3]}
5... O-O {[%clk 0:02:52.7]} 6. e3 {[%clk 0:02:56.6]} 6... Ne4 {[%clk 0:02:46.5]}
7. Bxe7 {[%clk 0:02:56.3]} 7... Qxe7 {[%clk 0:02:46.1]} 8. Qc2 {[%clk
0:02:56.9]} 8... Nxc3 {[%clk 0:02:43.8]} 9. Qxc3 {[%clk 0:02:57.8]} 9... c6
{[%clk 0:02:41.8]} 10. Be2 {[%clk 0:02:53.5]} 10... Nd7 {[%clk 0:02:39.6]} 11.
O-O {[%clk 0:02:53.1]} 11... dxc4 {[%clk 0:02:34]} 12. Bxc4 {[%clk 0:02:54]}
12... b6 {[%clk 0:02:34.3]} 13. b4 {[%clk 0:02:52.2]} 13... Bb7 {[%clk
0:02:34.2]} 14. Be2 {[%clk 0:02:50.5]} 14... Rfc8 {[%clk 0:02:29.1]} 15. a3
{[%clk 0:02:48.8]} 15... h6 {[%clk 0:02:28.8]} 16. Rfc1 {[%clk 0:02:46.5]} 16...
a5 {[%clk 0:02:25.3]} 17. Ne1 {[%clk 0:02:42.6]} 17... e5 {[%clk 0:02:21.2]} 18.
dxe5 {[%clk 0:02:41]} 18... Qxe5 {[%clk 0:02:18.9]} 19. Qxe5 {[%clk 0:02:39.7]}
19... Nxe5 {[%clk 0:02:18.9]} 20. Nd3 {[%clk 0:02:36.8]} 20... Nd7 {[%clk
0:02:15.4]} 21. Bf3 {[%clk 0:02:35.3]} 21... Rc7 {[%clk 0:02:01.3]} 22. g3
{[%clk 0:02:26.4]} 22... Kf8 {[%clk 0:01:59.2]} 23. h4 {[%clk 0:02:17]} 23...
Ke7 {[%clk 0:01:56.9]} 24. Kg2 {[%clk 0:02:15]} 24... g6 {[%clk 0:01:56.1]} 25.
Nf4 {[%clk 0:02:12]} 25... Rac8 {[%clk 0:01:38]} 26. bxa5 {[%clk 0:02:10]} 26...
bxa5 {[%clk 0:01:38.3]} 27. Rab1 {[%clk 0:02:10.4]} 27... Ne5 {[%clk 0:01:33.8]}
28. Nd5+ {[%clk 0:01:50.7]} 28... cxd5 {[%clk 0:01:30.2]} 29. Rxb7 {[%clk
0:01:51.5]} 29... Rxb7 {[%clk 0:01:30.3]} 30. Rxc8 {[%clk 0:01:52.1]} 30... Nxf3
{[%clk 0:01:23.6]} 31. Kxf3 {[%clk 0:01:53]} 31... Rb3 {[%clk 0:01:19.5]} 32.
Rc5 {[%clk 0:01:51.7]} 32... Rxa3 {[%clk 0:01:19.8]} 33. Rxd5 {[%clk 0:01:52.2]}
33... Ke6 {[%clk 0:01:17.4]} 34. Rb5 {[%clk 0:01:51.5]} 34... h5 {[%clk
0:01:15.2]} 35. Kf4 {[%clk 0:01:45.8]} 35... a4 {[%clk 0:01:12.2]} 36. e4 {[%clk
0:01:42]} 36... Kd6 {[%clk 0:01:06.3]} 37. Rb7 {[%clk 0:01:38.5]} 37... Ra2
{[%clk 0:00:49.1]} 38. f3 {[%clk 0:01:35.6]} 38... Ke6 {[%clk 0:00:37.1]} 39.
Rb6+ {[%clk 0:01:33.6]} 39... Ke7 {[%clk 0:00:37.4]} 40. Rb7+ {[%clk 0:01:31.8]}
40... Kf8 {[%clk 0:00:36.7]} 41. Ra7 {[%clk 0:01:31.3]} 41... a3 {[%clk
0:00:35]} 42. e5 {[%clk 0:01:24.5]} 42... Ke8 {[%clk 0:00:29.8]} 43. g4 {[%clk
0:01:20.5]} 43... hxg4 {[%clk 0:00:26.9]} 44. fxg4 {[%clk 0:01:21.4]} 44... Ra1
{[%clk 0:00:27.5]} 45. Kg5 {[%clk 0:01:15.6]} 45... a2 {[%clk 0:00:25.7]} 46. e6
{[%clk 0:01:13.5]} 46... fxe6 {[%clk 0:00:22.8]} 47. Kxg6 {[%clk 0:01:14.2]}
47... Rg1 {[%clk 0:00:15.2]} 48. Rxa2 {[%clk 0:01:12.5]} 48... Rxg4+ {[%clk
0:00:15.8]} 49. Kf6 {[%clk 0:01:11.3]} 49... Rxh4 {[%clk 0:00:15.6]} 50. Kxe6
{[%clk 0:01:11.5]} 50... Rh6+ {[%clk 0:00:16.1]} 51. Ke5 {[%clk 0:01:11.2]}
51... Kd7 {[%clk 0:00:15.9]} 1/2-1/2

[Event "Early-Titled-Tuesday-Blitz-March-12-2024"]
[Site "Chess.com"]
[Date "2024.03.12"]
[Round "3"]
[White "ahkashefi2800"]
[Black "Happy1712Drummer"]
[Result "1-0"]
[WhiteElo "2644"]
[BlackElo "2376"]
[TimeControl "180+1"]
[EndTime "8:27:44 PDT"]
[Termination "ahkashefi2800 won on time"]

1. d4 {[%clk 0:02:52.7]} 1... d5 {[%clk 0:02:59.9]} 2. c4 {[%clk 0:02:52.2]}
2... e6 {[%clk 0:03:00.2]} 3. Nc3 {[%clk 0:02:51.9]} 3... c5 {[%clk 0:02:58.4]}
4. cxd5 {[%clk 0:02:51.2]} 4... exd5 {[%clk 0:02:55.9]} 5. Nf3 {[%clk
0:02:51.6]} 5... Nc6 {[%clk 0:02:55.1]} 6. e3 {[%clk 0:02:50.5]} 6... Nf6 {[%clk
0:02:54.4]} 7. Bb5 {[%clk 0:02:45.5]} 7... cxd4 {[%clk 0:02:37.7]} 8. Nxd4
{[%clk 0:02:43.2]} 8... Bd7 {[%clk 0:02:38.3]} 9. O-O {[%clk 0:02:41.6]} 9...
Bd6 {[%clk 0:02:36.9]} 10. b3 {[%clk 0:02:39.3]} 10... O-O {[%clk 0:02:36.2]}
11. Bb2 {[%clk 0:02:39.2]} 11... Re8 {[%clk 0:02:21.4]} 12. Bxc6 {[%clk
0:02:24.7]} 12... bxc6 {[%clk 0:02:19]} 13. Qc2 {[%clk 0:02:25.2]} 13... Bxh2+
{[%clk 0:02:09.3]} 14. Kxh2 {[%clk 0:02:22.1]} 14... Ng4+ {[%clk 0:02:09.7]} 15.
Kg1 {[%clk 0:02:22.1]} 15... Qh4 {[%clk 0:02:04.7]} 16. Nf3 {[%clk 0:02:22.1]}
16... Qh5 {[%clk 0:02:02.5]} 17. Ne2 {[%clk 0:02:22]} 17... Bf5 {[%clk
0:01:55.1]} 18. Ng3 {[%clk 0:02:21.6]} 18... Bxc2 {[%clk 0:01:33.2]} 19. Nxh5
{[%clk 0:02:20.2]} 19... f6 {[%clk 0:01:22.7]} 20. Rac1 {[%clk 0:02:18.1]} 20...
Be4 {[%clk 0:01:17.2]} 21. Ng3 {[%clk 0:02:16.6]} 21... Rac8 {[%clk 0:01:03.7]}
22. Bd4 {[%clk 0:02:15.9]} 22... a6 {[%clk 0:00:58.2]} 23. Nxe4 {[%clk
0:02:11.3]} 23... dxe4 {[%clk 0:00:56.4]} 24. Nh2 {[%clk 0:02:11.4]} 24... Nh6
{[%clk 0:00:50.4]} 25. Rc5 {[%clk 0:02:09.9]} 25... Re6 {[%clk 0:00:30.4]} 26.
Rfc1 {[%clk 0:02:09.8]} 26... Nf7 {[%clk 0:00:27.1]} 27. Nf1 {[%clk 0:02:08.7]}
27... Nd8 {[%clk 0:00:22.4]} 28. Ra5 {[%clk 0:02:04.7]} 28... Ra8 {[%clk
0:00:21]} 29. Bc5 {[%clk 0:02:02.9]} 29... Nb7 {[%clk 0:00:21.2]} 30. Ra4 {[%clk
0:02:02.9]} 30... Re5 {[%clk 0:00:19.1]} 31. Bd4 {[%clk 0:02:00.7]} 31... Re6
{[%clk 0:00:18.8]} 32. Ng3 {[%clk 0:02:01.2]} 32... g6 {[%clk 0:00:17.7]} 33.
Ne2 {[%clk 0:01:59.9]} 33... a5 {[%clk 0:00:16.2]} 34. Nf4 {[%clk 0:01:59.3]}
34... Rd6 {[%clk 0:00:15.2]} 35. Rac4 {[%clk 0:01:59.5]} 35... Rc8 {[%clk
0:00:14.4]} 36. Bc5 {[%clk 0:01:58.5]} 36... Rd2 {[%clk 0:00:13.7]} 37. a4
{[%clk 0:01:57.2]} 37... Rb2 {[%clk 0:00:14]} 38. Bd4 {[%clk 0:01:56.7]} 38...
Rxb3 {[%clk 0:00:13.9]} 39. Rxc6 {[%clk 0:01:54.1]} 39... Rf8 {[%clk 0:00:07.3]}
40. Ne6 {[%clk 0:01:51.8]} 40... Re8 {[%clk 0:00:04.6]} 41. Nc5 {[%clk
0:01:45.8]} 41... Nd8 {[%clk 0:00:04.1]} 42. Rxf6 {[%clk 0:01:44.6]} 42... Rb4
{[%clk 0:00:03.1]} 43. Nd7 {[%clk 0:01:41.5]} 43... Ne6 {[%clk 0:00:02.6]} 44.
Bc3 {[%clk 0:01:26.7]} 44... Rxa4 {[%clk 0:00:02.8]} 45. Ra1 {[%clk 0:01:23.7]}
45... Rxa1+ {[%clk 0:00:02.7]} 46. Bxa1 {[%clk 0:01:24.6]} 46... a4 {[%clk
0:00:03.1]} 47. Bb2 {[%clk 0:01:17]} 47... a3 {[%clk 0:00:03.5]} 48. Bxa3 {[%clk
0:01:16.4]} 48... Kg7 {[%clk 0:00:01.5]} 49. Bb2 {[%clk 0:01:15.9]} 1-0

[Event "Early-Titled-Tuesday-Blitz-March-12-2024"]
[Site "Chess.com"]
[Date "2024.03.12"]
[Round "3"]
[White "margarita_2703"]
[Black "Alexander_Moskalenko"]
[Result "1-0"]
[WhiteElo "2406"]
[BlackElo "2852"]
[TimeControl "180+1"]
[EndTime "8:27:44 PDT"]
[Termination "margarita_2703 won by resignation"]

1. e4 {[%clk 0:03:00.4]} 1... Nf6 {[%clk 0:02:59.6]} 2. e5 {[%clk 0:02:15]} 2...
Ng8 {[%clk 0:02:54.3]} 3. Nc3 {[%clk 0:02:15.9]} 3... Nc6 {[%clk 0:02:51.4]} 4.
Nf3 {[%clk 0:02:12.4]} 4... Nb8 {[%clk 0:02:51.2]} 5. d4 {[%clk 0:02:11.5]} 5...
e6 {[%clk 0:02:51.7]} 6. Bd3 {[%clk 0:02:10.8]} 6... h6 {[%clk 0:02:51.4]} 7.
O-O {[%clk 0:02:08]} 7... d5 {[%clk 0:02:51.9]} 8. Ne2 {[%clk 0:02:04]} 8... Nd7
{[%clk 0:02:49]} 9. Ng3 {[%clk 0:02:02.4]} 9... c5 {[%clk 0:02:48.1]} 10. c3
{[%clk 0:01:47.5]} 10... Ne7 {[%clk 0:02:47.5]} 11. a3 {[%clk 0:01:46.8]} 11...
c4 {[%clk 0:02:47.1]} 12. Bb1 {[%clk 0:01:46.2]} 12... Nc6 {[%clk 0:02:47.6]}
13. h4 {[%clk 0:01:42.7]} 13... Na5 {[%clk 0:02:47.9]} 14. Bc2 {[%clk
0:01:41.2]} 14... Qb6 {[%clk 0:02:48.3]} 15. h5 {[%clk 0:01:39.3]} 15... Nb3
{[%clk 0:02:48.1]} 16. Rb1 {[%clk 0:01:37.8]} 16... Nxc1 {[%clk 0:02:46.6]} 17.
Qxc1 {[%clk 0:01:38.7]} 17... Qc7 {[%clk 0:02:46.8]} 18. Nh2 {[%clk 0:01:36.8]}
18... Be7 {[%clk 0:02:32.6]} 19. f4 {[%clk 0:01:34.9]} 19... Nb6 {[%clk
0:02:25.5]} 20. f5 {[%clk 0:01:34.3]} 20... Bg5 {[%clk 0:02:25.9]} 21. Qd1
{[%clk 0:01:31.8]} 21... Bd7 {[%clk 0:02:26]} 22. Qg4 {[%clk 0:01:28.4]} 22...
O-O-O {[%clk 0:02:17.8]} 23. Nf3 {[%clk 0:01:27.9]} 23... exf5 {[%clk
0:02:08.4]} 24. Bxf5 {[%clk 0:01:24.6]} 24... f6 {[%clk 0:02:07.3]} 25. e6
{[%clk 0:01:22.1]} 25... Bc6 {[%clk 0:01:50.7]} 26. Nxg5 {[%clk 0:01:00.7]}
26... hxg5 {[%clk 0:01:49.9]} 27. e7+ {[%clk 0:01:00.5]} 27... Rd7 {[%clk
0:01:50.2]} 28. Rbe1 {[%clk 0:00:59.9]} 28... Re8 {[%clk 0:01:50.4]} 29. Bxd7+
{[%clk 0:00:52.4]} 29... Bxd7 {[%clk 0:01:47.6]} 30. Qf3 {[%clk 0:00:52.2]}
30... Qd6 {[%clk 0:01:43]} 31. Nf5 {[%clk 0:00:51.5]} 31... Bxf5 {[%clk
0:01:41.2]} 32. Qxf5+ {[%clk 0:00:51.9]} 32... Qd7 {[%clk 0:01:40.5]} 33. Re6
{[%clk 0:00:42.4]} 33... Kc7 {[%clk 0:01:34.2]} 34. Rfe1 {[%clk 0:00:42.3]}
34... Nc8 {[%clk 0:01:31.4]} 35. Qg6 {[%clk 0:00:37.1]} 35... Nd6 {[%clk
0:01:25.5]} 36. Qxg7 {[%clk 0:00:34.9]} 36... Ne4 {[%clk 0:01:25.7]} 37. R6xe4
{[%clk 0:00:34]} 37... dxe4 {[%clk 0:01:25.8]} 38. Rxe4 {[%clk 0:00:34.9]} 38...
Qf5 {[%clk 0:01:24]} 39. Re1 {[%clk 0:00:28.3]} 39... Kd7 {[%clk 0:01:20]} 40.
Qf7 {[%clk 0:00:26.3]} 40... b5 {[%clk 0:01:17.7]} 41. h6 {[%clk 0:00:25]} 41...
Qg4 {[%clk 0:01:15.2]} 42. Qd5+ {[%clk 0:00:24.8]} 42... Kc7 {[%clk 0:01:14.3]}
43. Qxb5 {[%clk 0:00:23.5]} 43... Qg3 {[%clk 0:01:11.8]} 44. Qxc4+ {[%clk
0:00:22.5]} 44... Kb7 {[%clk 0:01:09.4]} 45. Qd5+ {[%clk 0:00:22.5]} 45... Kc7
{[%clk 0:01:09.6]} 46. Qe6 {[%clk 0:00:19.6]} 46... g4 {[%clk 0:01:05.5]} 47. h7
{[%clk 0:00:18.4]} 47... Qh4 {[%clk 0:01:06]} 48. d5 {[%clk 0:00:17.3]} 48... g3
{[%clk 0:01:02.6]} 49. Qc6+ {[%clk 0:00:16]} 1-0

[Event "Early-Titled-Tuesday-Blitz-March-12-2024"]
[Site "Chess.com"]
[Date "2024.03.12"]
[Round "3"]
[White "EpicPlayz282"]
[Black "Kotlyar_K"]
[Result "1-0"]
[WhiteElo "2345"]
[BlackElo "2608"]
[TimeControl "180+1"]
[EndTime "8:27:46 PDT"]
[Termination "EpicPlayz282 won on time"]

1. e4 {[%clk 0:02:54.4]} 1... c5 {[%clk 0:02:58.7]} 2. c3 {[%clk 0:02:53.4]}
2... e6 {[%clk 0:02:56.4]} 3. d4 {[%clk 0:02:53.2]} 3... d5 {[%clk 0:02:56.2]}
4. e5 {[%clk 0:02:53.5]} 4... Qb6 {[%clk 0:02:55.4]} 5. Nf3 {[%clk 0:02:53.5]}
5... Nc6 {[%clk 0:02:55.2]} 6. a3 {[%clk 0:02:52.6]} 6... c4 {[%clk 0:02:55.5]}
7. Nbd2 {[%clk 0:02:51]} 7... f6 {[%clk 0:02:55.5]} 8. exf6 {[%clk 0:02:46.7]}
8... Nxf6 {[%clk 0:02:56.4]} 9. Be2 {[%clk 0:02:46.8]} 9... Bd6 {[%clk
0:02:55.2]} 10. O-O {[%clk 0:02:40.4]} 10... O-O {[%clk 0:02:54.6]} 11. Re1
{[%clk 0:02:31.6]} 11... e5 {[%clk 0:02:19.8]} 12. dxe5 {[%clk 0:00:55]} 12...
Nxe5 {[%clk 0:02:20.7]} 13. Nxe5 {[%clk 0:00:43.6]} 13... Bxe5 {[%clk
0:02:21.6]} 14. Nf3 {[%clk 0:00:44.2]} 14... Bc7 {[%clk 0:02:11.7]} 15. Nd4
{[%clk 0:00:34.9]} 15... Ne4 {[%clk 0:02:03.5]} 16. Bf3 {[%clk 0:00:30.6]} 16...
Qd6 {[%clk 0:01:58.5]} 17. g3 {[%clk 0:00:29]} 17... Bf5 {[%clk 0:00:29.2]} 18.
Nb5 {[%clk 0:00:24.7]} 18... Qc5 {[%clk 0:00:25.9]} 19. Nxc7 {[%clk 0:00:18]}
19... Qxf2+ {[%clk 0:00:11.8]} 20. Kh1 {[%clk 0:00:17.7]} 20... Bh3 {[%clk
0:00:07.2]} 21. Qxd5+ {[%clk 0:00:04.3]} 21... Kh8 {[%clk 0:00:07.1]} 22. Qxe4
{[%clk 0:00:05.1]} 22... Rxf3 {[%clk 0:00:05.6]} 23. Rg1 {[%clk 0:00:05.5]}
23... Qe2 {[%clk 0:00:01.7]} 24. Qxe2 {[%clk 0:00:05.3]} 24... Re8 {[%clk
0:00:01.6]} 25. Qxe8+ {[%clk 0:00:05.4]} 1-0

[Event "Early-Titled-Tuesday-Blitz-March-12-2024"]
[Site "Chess.com"]
[Date "2024.03.12"]
[Round "3"]
[White "szachuspl"]
[Black "Zhigalko_Sergei"]
[Result "0-1"]
[WhiteElo "2532"]
[BlackElo "2851"]
[TimeControl "180+1"]
[EndTime "8:27:47 PDT"]
[Termination "Zhigalko_Sergei won by resignation"]

1. d4 {[%clk 0:03:00.9]} 1... Nf6 {[%clk 0:02:59.9]} 2. c4 {[%clk 0:03:00.9]}
2... e6 {[%clk 0:03:00.4]} 3. Nf3 {[%clk 0:03:01.2]} 3... b6 {[%clk 0:03:00.6]}
4. g3 {[%clk 0:03:00.7]} 4... Ba6 {[%clk 0:03:00.8]} 5. b3 {[%clk 0:02:58.4]}
5... Bb4+ {[%clk 0:03:00.6]} 6. Bd2 {[%clk 0:02:58.6]} 6... Be7 {[%clk
0:03:00.9]} 7. Bg2 {[%clk 0:02:59.2]} 7... c6 {[%clk 0:03:00.4]} 8. O-O {[%clk
0:02:58.9]} 8... d5 {[%clk 0:03:00.4]} 9. Nc3 {[%clk 0:02:53]} 9... Nbd7 {[%clk
0:02:59.6]} 10. cxd5 {[%clk 0:02:51.9]} 10... cxd5 {[%clk 0:02:59.7]} 11. Bf4
{[%clk 0:02:52.1]} 11... Rc8 {[%clk 0:02:59.1]} 12. Rc1 {[%clk 0:02:51.3]} 12...
O-O {[%clk 0:02:57.4]} 13. a4 {[%clk 0:02:46.6]} 13... Ba3 {[%clk 0:02:24.5]}
14. Rc2 {[%clk 0:02:46.4]} 14... Qe7 {[%clk 0:02:24.9]} 15. Ne5 {[%clk
0:02:29.8]} 15... Nxe5 {[%clk 0:02:22.9]} 16. Bxe5 {[%clk 0:02:23.2]} 16... Bb4
{[%clk 0:02:01.8]} 17. Nb5 {[%clk 0:02:20.5]} 17... Rxc2 {[%clk 0:02:00.8]} 18.
Qxc2 {[%clk 0:02:20.8]} 18... Rc8 {[%clk 0:02:01.2]} 19. Qb1 {[%clk 0:02:11.5]}
19... Bxb5 {[%clk 0:01:32.1]} 20. axb5 {[%clk 0:02:11.2]} 20... Qd7 {[%clk
0:01:25.9]} 21. Rc1 {[%clk 0:02:05.9]} 21... Rxc1+ {[%clk 0:01:13.2]} 22. Qxc1
{[%clk 0:02:05.5]} 22... Qxb5 {[%clk 0:01:09.7]} 23. Qc8+ {[%clk 0:02:05.3]}
23... Bf8 {[%clk 0:00:51.2]} 24. Qc2 {[%clk 0:01:56.1]} 24... Ng4 {[%clk
0:00:36]} 25. Bf4 {[%clk 0:01:53.7]} 25... Qb4 {[%clk 0:00:36.3]} 26. e3 {[%clk
0:01:49.8]} 26... Qe1+ {[%clk 0:00:31.4]} 27. Bf1 {[%clk 0:01:49.9]} 27... h6
{[%clk 0:00:28.6]} 28. h3 {[%clk 0:01:48.9]} 28... Nf6 {[%clk 0:00:28.8]} 29.
Kg2 {[%clk 0:01:46]} 29... Ne4 {[%clk 0:00:26.2]} 30. Bd3 {[%clk 0:01:44.1]}
30... Nc3 {[%clk 0:00:22.1]} 31. Bb8 {[%clk 0:01:34.3]} 31... a5 {[%clk
0:00:18.4]} 32. Bc7 {[%clk 0:01:34.3]} 32... Bb4 {[%clk 0:00:16.9]} 33. Bxb6
{[%clk 0:01:33.2]} 33... Qa1 {[%clk 0:00:10.5]} 34. Bc7 {[%clk 0:01:31.4]} 34...
Qa3 {[%clk 0:00:09.8]} 35. h4 {[%clk 0:01:25.8]} 35... Qa1 {[%clk 0:00:09.6]}
36. Bf4 {[%clk 0:01:22.8]} 36... Qa3 {[%clk 0:00:08.7]} 37. g4 {[%clk
0:01:22.5]} 37... Qa2 {[%clk 0:00:08.1]} 38. Qxa2 {[%clk 0:01:14.9]} 38... Nxa2
{[%clk 0:00:09]} 39. Kf1 {[%clk 0:01:14.3]} 39... Kf8 {[%clk 0:00:07.6]} 40. g5
{[%clk 0:01:13.9]} 40... hxg5 {[%clk 0:00:07.4]} 41. hxg5 {[%clk 0:01:12.4]}
41... g6 {[%clk 0:00:07.9]} 42. Bc7 {[%clk 0:01:10.7]} 42... Kg8 {[%clk
0:00:05.8]} 43. Ke2 {[%clk 0:01:09.6]} 43... Nc1+ {[%clk 0:00:06]} 44. Kd1
{[%clk 0:00:49.9]} 44... Nxd3 {[%clk 0:00:06.9]} 45. Ke2 {[%clk 0:00:50]} 45...
Nc1+ {[%clk 0:00:07]} 0-1

[Event "Early-Titled-Tuesday-Blitz-March-12-2024"]
[Site "Chess.com"]
[Date "2024.03.12"]
[Round "3"]
[White "sergoy"]
[Black "kushagramohan"]
[Result "1-0"]
[WhiteElo "3008"]
[BlackElo "2777"]
[TimeControl "180+1"]
[EndTime "8:27:48 PDT"]
[Termination "sergoy won by resignation"]

1. d4 {[%clk 0:03:00.9]} 1... Nf6 {[%clk 0:02:58.8]} 2. c4 {[%clk 0:03:01.1]}
2... g6 {[%clk 0:02:58.4]} 3. Nc3 {[%clk 0:03:01.1]} 3... d5 {[%clk 0:02:58.9]}
4. cxd5 {[%clk 0:03:01.1]} 4... Nxd5 {[%clk 0:02:59.8]} 5. e4 {[%clk 0:03:01.9]}
5... Nxc3 {[%clk 0:03:00.3]} 6. bxc3 {[%clk 0:03:02.8]} 6... Bg7 {[%clk
0:03:01]} 7. Nf3 {[%clk 0:03:02.8]} 7... c5 {[%clk 0:03:01.7]} 8. Be3 {[%clk
0:03:03.5]} 8... Qa5 {[%clk 0:02:53.8]} 9. Qd2 {[%clk 0:03:02.8]} 9... Nc6
{[%clk 0:02:51]} 10. Rb1 {[%clk 0:03:03]} 10... a6 {[%clk 0:02:50.7]} 11. Rc1
{[%clk 0:03:03.3]} 11... cxd4 {[%clk 0:02:45.3]} 12. cxd4 {[%clk 0:03:04.2]}
12... Qxd2+ {[%clk 0:02:46.2]} 13. Kxd2 {[%clk 0:03:05.1]} 13... e6 {[%clk
0:02:43.9]} 14. h4 {[%clk 0:03:04.9]} 14... O-O {[%clk 0:02:39.9]} 15. Bd3
{[%clk 0:03:03.5]} 15... h6 {[%clk 0:02:39.8]} 16. h5 {[%clk 0:02:56.7]} 16...
g5 {[%clk 0:02:34.3]} 17. e5 {[%clk 0:02:45.3]} 17... Rd8 {[%clk 0:02:34.4]} 18.
Nxg5 {[%clk 0:02:45.7]} 18... Nxd4 {[%clk 0:02:31.2]} 19. Ne4 {[%clk 0:02:45.9]}
19... Bxe5 {[%clk 0:02:26.5]} 20. Bxh6 {[%clk 0:02:44.7]} 20... f5 {[%clk
0:02:27]} 21. Nc5 {[%clk 0:02:06.5]} 21... Nc6 {[%clk 0:02:26.1]} 22. Bg5 {[%clk
0:02:00.4]} 22... Rd5 {[%clk 0:02:21.9]} 23. Ke2 {[%clk 0:01:50.7]} 23... Nd4+
{[%clk 0:01:48.6]} 24. Kf1 {[%clk 0:01:50.4]} 24... b6 {[%clk 0:01:48.8]} 25.
Na4 {[%clk 0:01:50.3]} 25... Rd6 {[%clk 0:01:32.5]} 26. Be7 {[%clk 0:01:39.6]}
26... Rc6 {[%clk 0:01:21.6]} 27. Rxc6 {[%clk 0:01:25.7]} 27... Nxc6 {[%clk
0:01:22.5]} 28. Nxb6 {[%clk 0:01:25.6]} 28... Rb8 {[%clk 0:01:22.7]} 29. Bc5
{[%clk 0:01:26.2]} 29... Bd4 {[%clk 0:01:09.8]} 30. Bxd4 {[%clk 0:01:10.7]}
30... Nxd4 {[%clk 0:01:10.7]} 31. Nxc8 {[%clk 0:01:11]} 31... Rxc8 {[%clk
0:01:11.6]} 32. g3 {[%clk 0:01:10.6]} 32... Rc1+ {[%clk 0:01:02]} 33. Kg2 {[%clk
0:01:10.9]} 33... Rxh1 {[%clk 0:01:02.9]} 34. Kxh1 {[%clk 0:01:11.8]} 34... a5
{[%clk 0:01:03.8]} 35. Kg2 {[%clk 0:01:02.4]} 35... Kg7 {[%clk 0:01:04.2]} 36.
f3 {[%clk 0:01:03.1]} 36... Kh6 {[%clk 0:01:02]} 37. g4 {[%clk 0:01:03.5]} 37...
fxg4 {[%clk 0:00:49.7]} 38. fxg4 {[%clk 0:01:03.7]} 38... Kg5 {[%clk 0:00:50.3]}
39. Kf2 {[%clk 0:01:03.2]} 39... Nc6 {[%clk 0:00:48.1]} 40. Be2 {[%clk
0:00:55.9]} 40... Nb4 {[%clk 0:00:40]} 41. Bc4 {[%clk 0:00:52.1]} 41... e5
{[%clk 0:00:35.8]} 42. Kf3 {[%clk 0:00:48.9]} 42... Nc6 {[%clk 0:00:32.6]} 43.
Ke4 {[%clk 0:00:48.4]} 43... Ne7 {[%clk 0:00:30.2]} 44. Kxe5 {[%clk 0:00:45]}
44... Kxg4 {[%clk 0:00:30.6]} 45. Kf6 {[%clk 0:00:42]} 1-0

[Event "Early-Titled-Tuesday-Blitz-March-12-2024"]
[Site "Chess.com"]
[Date "2024.03.12"]
[Round "3"]
[White "WilsonPalencia21"]
[Black "enriquebutti"]
[Result "0-1"]
[WhiteElo "2561"]
[BlackElo "2231"]
[TimeControl "180+1"]
[EndTime "8:27:50 PDT"]
[Termination "enriquebutti won on time"]

1. d4 {[%clk 0:02:56.9]} 1... Nf6 {[%clk 0:02:59.3]} 2. Nf3 {[%clk 0:02:56.8]}
2... d5 {[%clk 0:02:55.6]} 3. c4 {[%clk 0:02:56.8]} 3... c6 {[%clk 0:02:55.3]}
4. Nc3 {[%clk 0:02:57.3]} 4... a6 {[%clk 0:02:52.3]} 5. c5 {[%clk 0:02:57.2]}
5... Nbd7 {[%clk 0:02:51.5]} 6. Bf4 {[%clk 0:02:56.9]} 6... g6 {[%clk
0:02:49.7]} 7. e3 {[%clk 0:02:56.2]} 7... Nh5 {[%clk 0:02:48.8]} 8. h4 {[%clk
0:02:55.9]} 8... Bg7 {[%clk 0:02:44.9]} 9. Qd2 {[%clk 0:02:53.6]} 9... O-O
{[%clk 0:02:41.8]} 10. Be2 {[%clk 0:02:53.7]} 10... Re8 {[%clk 0:02:25.6]} 11.
Ne5 {[%clk 0:02:48.4]} 11... Nxf4 {[%clk 0:02:24.4]} 12. exf4 {[%clk 0:02:47.8]}
12... f6 {[%clk 0:02:24.1]} 13. Nxd7 {[%clk 0:02:45.9]} 13... Bxd7 {[%clk
0:02:23.1]} 14. h5 {[%clk 0:02:46.1]} 14... e5 {[%clk 0:02:22.3]} 15. hxg6
{[%clk 0:02:45.3]} 15... hxg6 {[%clk 0:02:21.9]} 16. O-O-O {[%clk 0:02:45]}
16... exd4 {[%clk 0:02:13.3]} 17. Qxd4 {[%clk 0:02:44.8]} 17... f5 {[%clk
0:02:13.1]} 18. Qd3 {[%clk 0:02:40]} 18... Qa5 {[%clk 0:02:10.5]} 19. Bh5 {[%clk
0:02:15.6]} 19... gxh5 {[%clk 0:02:01.2]} 20. Rxh5 {[%clk 0:02:14.3]} 20... Qxc5
{[%clk 0:01:52.5]} 21. Qg3 {[%clk 0:02:06.1]} 21... d4 {[%clk 0:01:43.6]} 22.
Rg5 {[%clk 0:01:59.6]} 22... Re7 {[%clk 0:01:42.9]} 23. Rh1 {[%clk 0:01:38.8]}
23... dxc3 {[%clk 0:01:34.9]} 24. Qh4 {[%clk 0:01:28.7]} 24... cxb2+ {[%clk
0:01:30.8]} 25. Kb1 {[%clk 0:01:28.6]} 25... Kf7 {[%clk 0:01:15.8]} 26. Rxg7+
{[%clk 0:01:05.4]} 26... Kxg7 {[%clk 0:01:05.8]} 27. Qh7+ {[%clk 0:00:33.5]}
27... Kf8 {[%clk 0:00:56.8]} 28. Qh8+ {[%clk 0:00:30.4]} 28... Kf7 {[%clk
0:00:56.5]} 29. Qh7+ {[%clk 0:00:11.6]} 29... Ke6 {[%clk 0:00:53.1]} 30. Re1+
{[%clk 0:00:11.5]} 30... Kd5 {[%clk 0:00:50]} 31. Rd1+ {[%clk 0:00:11.4]} 31...
Kc4 {[%clk 0:00:46.6]} 32. Qh3 {[%clk 0:00:11.2]} 32... Kb5 {[%clk 0:00:42.7]}
33. Qb3+ {[%clk 0:00:10.7]} 33... Qb4 {[%clk 0:00:40]} 34. Qd3+ {[%clk
0:00:09.4]} 34... Ka5 {[%clk 0:00:37.2]} 35. a3 {[%clk 0:00:08.7]} 35... Qe4
{[%clk 0:00:35.5]} 0-1